[Event "German-ch Blitz Women 2022"]
[Site "Magdeburg"]
[Date "2022.08.13"]
[Round "8"]
[White "Nikolaeva, Mariya A"]
[Black "Zhou, Lepu Coco"]
[Result "1-0"]
[ECO "C68"]
[WhiteElo "1309"]
[BlackElo "1986"]
[Annotator "TA"]
[PlyCount "131"]
[EventDate "2022.08.10"]
[EventType "tourn"]
[EventCountry "GER"]
[SourceTitle "playchess.com"]
[Source "ChessBase"]
[SourceQuality "1"]
[TimeControl "180+2"]

{[%evp 13,131,0,8,0,0,0,0,-52,0,-28,-33,-58,0,-126,-96,-152,-105,-203,-125,-348,-213,-350,-112,-261,-264,-474,-406,-406,-70,-61,-58,-116,-53,-197,-202,-310,-303,-828,-627,-532,-488,-534,-414,-426,-413,-405,-375,-458,-268,-5389,-387,-1751,-58,-82,-112,-136,-45,-43,-28,-27,10,11,11,12,13,0,0,0,0,0,58,45,382,0,576,0,989,1017,866,807,585,420,282,23,23,24,614,609,639,622,595,585,659,468,879,696,644,451,831,807,681,679,2041,1859,998,318,241,93,29971,29968,29969,29970,29970,29971,29992,29993,29995,29993,29993,29994]} 1. e4 {[%emt 0:00:01]} e5 {[%emt 0:00:01]} 2. Nf3 {[%emt 0:00:01]} Nc6 {[%emt 0:00:01]} 3. Bb5 {[%emt 0:00:01]} a6 {[%emt 0:00:00]} 4. Bxc6 {[%emt 0:00:01]} dxc6 {[%emt 0:00:01]} 5. Nc3 {[%emt 0:00:01]} Bd6 {[%emt 0:00:10]} 6. d4 {[%emt 0:00:02]} exd4 {[%emt 0:00:06]} 7. Qxd4 {[%emt 0:00:01]} f6 $1 {[%emt 0:00:10]} 8. O-O {[%emt 0:00:06] C68: Ruy Lopez: Exchange Variation, sidelines.} Ne7 {[%emt 0:00:02]} 9. Be3 {[%emt 0:00:06]} Be6 {[%emt 0:00:07]} 10. Rad1 {[%emt 0:00:05]} (10. Na4 $11) 10... O-O {[%emt 0:00:04] [#]} (10... Bg4 $1 $15) 11. a3 $146 {[%emt 0:00:14]} ({Predecessor:} 11. h3 Ng6 12. Qd2 Qe7 13. Nd4 Rad8 14. Qe2 Bc8 15. Rfe1 Rfe8 16. Nf5 Qe5 17. Nxd6 cxd6 {½-½ (25) Kracht,R (1976)-Gerlach,F (2079) Willingen 2019}) 11... Qe8 {[%emt 0:00:02]} 12. h3 {[%emt 0:00:21] Against Bg4} Qh5 {[%emt 0:00:07]} (12... Rd8 $15) 13. Nh2 {[%emt 0:00:16]} (13. Ne2 $1 $11) 13... Rad8 {[%emt 0:00:10]} 14. Qa4 {[%emt 0:00:19]} ({Better is} 14. Kh1) 14... f5 {[%emt 0:00:29]} (14... Qe5 15. f4 Qh5 16. Nf3 $15) (14... Ng6 $142 15. Rfe1 (15. Nf3 $2 Bxh3 16. e5 fxe5 $19) 15... Be5 16. Rxd8 Rxd8) 15. f4 {[%emt 0:00:13]} (15. exf5 $17 {was worth a try.} Qxf5 16. Qh4) 15... fxe4 {[%emt 0:00:14]} 16. Nxe4 $2 {[%emt 0:00:02]} (16. Qxe4 $17 Bf5 17. Qc4+ Kh8 18. Rd2) 16... Nd5 {[%emt 0:00:13]} 17. Bc1 {[%emt 0:00:28]} (17. Ng4 $142) 17... Qg6 $2 {[%emt 0:00:38]} ({Not} 17... Bxf4 $2 18. Kh1) (17... Nxf4 $19 {is more deadly.} 18. Bxf4 Rxf4 19. Rxd6 Rxf1+ 20. Nxf1 cxd6) 18. Ng5 {[%emt 0:00:22]} (18. Nxd6 $17 {might work better.} Rxd6 19. Rd2) 18... Bf5 $19 {[%emt 0:00:14]} 19. c4 {[%emt 0:00:03]} (19. Qc4 {is a better defense.} h6 20. Ngf3 Bxh3 21. Nh4) 19... Bc5+ {[%emt 0:00:06]} 20. Kh1 {[%emt 0:00:02]} Nb6 {[%emt 0:00:14]} (20... Bc2 $19 21. f5 Rxf5 $1) 21. Qa5 $15 {[%emt 0:00:06] Strongly threatening Rxd8.} Be7 {[%emt 0:00:10] This bishop pair is nice.} 22. c5 {[%emt 0:00:04]} (22. Rde1 $15 Bf6 23. c5) 22... Nd5 {[%emt 0:00:02]} (22... Rxd1 $17 23. Rxd1 Nd5) 23. g4 {[%emt 0:00:09]} (23. Nhf3 $1 $15) 23... Be4+ $19 {[%emt 0:00:02]} 24. Ngf3 {[%emt 0:00:08]} (24. Nxe4 $142 Qxe4+ 25. Rf3) 24... Nxf4 {[%emt 0:00:07]} 25. Qe1 {[%emt 0:00:09]} (25. Rxd8 Bxd8 26. Bxf4 Rxf4 27. Kg1) 25... Rxd1 {[%emt 0:00:05]} 26. Qxd1 {[%emt 0:00:02]} Nd5 {[%emt 0:00:03]} 27. b4 {[%emt 0:00:05]} a5 {[%emt 0:00:04]} 28. Bd2 {[%emt 0:00:02]} axb4 {[%emt 0:00:01]} 29. axb4 {[%emt 0:00:01]} Qf6 {[%emt 0:00:04]} 30. Kg2 {[%emt 0:00:05]} Qb2 {[%emt 0:00:02]} (30... Qd4 $142 31. Kg3 Qd3) 31. Qe2 $2 {[%emt 0:00:03]} (31. Re1 Bg6 32. Re2) 31... Bxf3+ $2 {[%emt 0:00:03]} (31... Nf4+ 32. Bxf4 Qxe2+ 33. Rf2 Qc4 34. Bxc7 Qxb4) 32. Nxf3 $2 {[%emt 0:00:02]} (32. Rxf3 Nf4+ 33. Rxf4 Rxf4 34. Nf3) 32... Bf6 $2 {[%emt 0:00:02]} (32... Nf4+ $19 33. Bxf4 Qxe2+ 34. Rf2 Qe4 35. Bxc7 Qxb4) 33. Qe6+ {[%emt 0:00:03]} Kh8 {[%emt 0:00:06] White must now prevent ...Nf4+.} 34. Rf2 {[%emt 0:00:00]} Qb3 {[%emt 0:00:02]} ({Don't do} 34... Nxb4 35. Ng5 h6 36. Nf7+ Rxf7 37. Qe8+ (37. Qxf7 Qd4 $14) 37... Kh7 38. Qxf7 $16) (34... Bd4 $17 {Threatens to win with ...Nf4+.} 35. Nxd4 Rxf2+ 36. Kxf2 Qxd2+ 37. Ne2 g6) 35. Qe4 $15 {[%emt 0:00:00] Against Nf4+} Nc3 {[%emt 0:00:01]} 36. Bxc3 {[%emt 0:00:00]} Qxc3 {[%emt 0:00:01]} 37. g5 $40 {[%emt 0:00:00][%cal Of3e5][%mdl 128] Ne5! is the strong threat. White mounts an attack.} Bd8 {[%emt 0:00:05]} 38. h4 {[%emt 0:00:00][%mdl 1024] White has compensation.} Qb3 $1 {[%emt 0:00:03]} 39. Re2 {[%emt 0:00:00]} Qf7 {[%emt 0:00:01]} 40. Re3 {[%emt 0:00:00]} h6 {[%emt 0:00:03]} 41. Ne5 {[%emt 0:00:14] Active counter play!} Qf2+ {[%emt 0:00:02]} ({Black should try} 41... Qf1+ $11 42. Kg3 Kg8) 42. Kh3 $14 {[%emt 0:00:04] Hoping for Ng6+.} Qf1+ $2 {[%emt 0:00:01][%mdl 8192]} (42... Rf5 $1 $14) 43. Kg3 $2 ({Only move:} 43. Kg4 $1 $18 Qd1+ 44. Re2) 43... Qf2+ $2 {[%emt 0:00:02][%mdl 8192] [#]} (43... Qg1+ $11 44. Kh3 Rf2) 44. Kh3 $2 {[%emt 0:00:05]} (44. Kg4 $1 $18) 44... Qf5+ {[%emt 0:00:04][%mdl 8192]} (44... Qf1+ $11 45. Kg4 Qd1+ 46. Re2 Kg8) 45. Qxf5 $18 {[%emt 0:00:03]} Rxf5 {[%emt 0:00:00][%mdl 4096] Endgame [#] KRB-KRN} 46. g6 $1 {[%emt 0:00:06]} Rf8 {[%emt 0:00:02]} 47. Nf7+ {[%emt 0:00:01]} Kg8 {[%emt 0:00:01]} 48. Rd3 $2 {[%emt 0:00:06]} (48. Nxd8 $18 Rxd8 49. Re7) 48... Bf6 $11 {[%emt 0:00:01]} 49. Rd7 {[%emt 0:00:02]} b6 $2 {[%emt 0:00:01][%mdl 8192]} (49... Bc3 $11) 50. Rxc7 $18 {[%emt 0:00:01]} bxc5 {[%emt 0:00:01]} 51. bxc5 {[%emt 0:00:01]} Ra8 {[%emt 0:00:01]} 52. Rxc6 {[%emt 0:00:02]} Ra3+ {[%emt 0:00:01]} 53. Kg2 {[%emt 0:00:02] Intending Rc8+ and mate.} Ra2+ {[%emt 0:00:01]} (53... Kf8 $142 54. Nd6 Ra7) 54. Kf3 {[%emt 0:00:01] Threatening mate with Rc8+.} Ra3+ {[%emt 0:00:01]} 55. Ke2 {[%emt 0:00:01]} Ra2+ {[%emt 0:00:01]} (55... Kf8 $142 56. Nd6 Ra7) 56. Kd3 {[%emt 0:00:01] White threatens Rc8+ and mate.} Ra3+ {[%emt 0:00:01]} 57. Kc4 {[%emt 0:00:02] White wants to mate with Rc8+.} Ra8 {[%emt 0:00:02] Against Rc8+} 58. Rb6 {[%emt 0:00:03]} Bxh4 {[%emt 0:00:02]} 59. c6 $2 {[%emt 0:00:02]} (59. Kd5 Bf2 60. Rb7 Bxc5 61. Kxc5) 59... Bg3 {[%emt 0:00:02]} 60. Rb7 {[%emt 0:00:02]} (60. Rb3 $18 {and White stays clearly on top.} Bh2 61. Re3) 60... Rc8 $2 {[%emt 0:00:01][%mdl 8192]} (60... Ra1 $16) 61. Kd5 {[%emt 0:00:02] White mates.} h5 {[%emt 0:00:02]} 62. Nd6 {[%emt 0:00:01]} Rd8 {[%emt 0:00:03]} 63. Rd7 {[%emt 0:00:04][%cal Rd7d8]} Ra8 {[%emt 0:00:01]} 64. c7 {[%emt 0:00:03]} Bxd6 {[%emt 0:00:03]} 65. Kxd6 {[%emt 0:00:01]} Ra6+ {[%emt 0:00:02]} 66. Ke7 {[%emt 0:00:04] Quite a comeback for White.  Weighted Error Value: White=1.09/Black=1.02} 1-0

[Event "German-ch Blitz Women 2022"]
[Site "Magdeburg"]
[Date "2022.08.13"]
[Round "8.1"]
[White "Paehtz, Elisabeth"]
[Black "Zhou, Lepu Coco"]
[Result "1-0"]
[ECO "D00"]
[WhiteElo "2484"]
[BlackElo "1986"]
[Annotator "TA"]
[PlyCount "71"]
[EventDate "2022.08.10"]
[EventType "tourn"]
[EventCountry "GER"]
[SourceTitle "playchess.com"]
[Source "ChessBase"]
[SourceQuality "1"]
[TimeControl "180+2"]

{[%evp 10,71,0,-8,6,-8,-9,-8,-8,-32,-14,-22,-8,-17,-14,-6,0,-11,-8,-7,-4,-23,-32,-60,-65,-82,-81,-89,-68,-97,-105,-98,-39,-59,0,-10,270,338,306,313,301,296,296,296,348,323,329,341,450,357,600,599,737,747,721,720,620,555,1013,977,1933,1665,1596,981]} 1. d4 {[%emt 0:00:01]} d5 {[%emt 0:00:01]} 2. Bf4 {[%emt 0:00:01]} Nf6 {[%emt 0:00:01]} 3. e3 {[%emt 0:00:01]} e6 {[%emt 0:00:01]} 4. Nf3 {[%emt 0:00:03]} Bd6 {[%emt 0:00:01]} 5. Bg3 {[%emt 0:00:01]} O-O {[%emt 0:00:03]} 6. Nbd2 {[%emt 0:00:01]} c5 {[%emt 0:00:01] D02: 1 d4 d5 2 Nf3 sidelines, including 2...Nf6 3 g3 and 2...Nf6 3 Bf4.} 7. c3 {[%emt 0:00:02]} Qc7 {[%emt 0:00:01]} 8. Ne5 {[%emt 0:00:01]} Nc6 {[%emt 0:00:01] The position is equal.} 9. f4 {[%emt 0:00:01]} Ne7 {[%emt 0:00:02][%cal Ob7b5]} 10. Bd3 {[%emt 0:00:02]} c4 {[%emt 0:00:01]} 11. Bc2 {[%emt 0:00:02]} b5 {[%emt 0:00:02]} 12. a3 {[%emt 0:00:03]} Ne8 {[%emt 0:00:03] [#]} 13. Qh5 $146 {[%emt 0:00:12][%csl Gc2][%cal Rh5h7]} ({Predecessor:} 13. O-O Nf5 14. Qe1 Nf6 15. Bh4 Be7 16. Bxf6 Bxf6 17. e4 dxe4 18. Nxe4 Be7 19. Ng3 {0-1 (51) Zargarov,M (1915)-Eilenberg,J (2087) Davos 2021}) 13... g6 {[%emt 0:00:01]} 14. Qe2 {[%emt 0:00:07]} (14. Qh3 {is more complex.} f6 15. O-O Nf5 16. Bf2) 14... f6 {[%emt 0:00:02]} 15. Nef3 {[%emt 0:00:02]} a5 {[%emt 0:00:03]} 16. h4 {[%emt 0:00:04]} Ng7 {[%emt 0:00:04]} 17. Bh2 {[%emt 0:00:10]} Rb8 {[%emt 0:00:18]} 18. O-O {[%emt 0:00:12]} b4 {[%emt 0:00:03]} 19. a4 {[%emt 0:00:14]} bxc3 {[%emt 0:00:08]} 20. bxc3 {[%emt 0:00:01]} Bd7 {[%emt 0:00:12]} (20... Rb2 $17 21. Rfc1 Ba6) 21. e4 $15 {[%emt 0:00:05]} dxe4 {[%emt 0:00:18]} ({Don't play} 21... Bxf4 22. Bxf4 Qxf4 {[#]} 23. Ne5 $1 {[%mdl 512]} fxe5 24. Rxf4 Rxf4 25. dxe5 $16) (21... Rb2 $15 {should be considered.} 22. Rfc1 dxe4 23. Nxe4 Bxf4 24. Bxf4 Qxf4) 22. Nxe4 $11 {[%emt 0:00:01]} Bxf4 {[%emt 0:00:15][%mdl 8192] This costs Black the game.} (22... f5 $11 {and Black has nothing to worry.} 23. Nxd6 Qxd6) 23. Bxf4 $18 {[%emt 0:00:03][%mdl 64] Remove Defender} Qxf4 {[%emt 0:00:02] [#]} 24. Ne5 $1 {[%emt 0:00:04][%mdl 576] Discovered Attack} fxe5 {[%emt 0:00:11]} 25. Rxf4 {[%emt 0:00:01]} exf4 {[%emt 0:00:01]} 26. Nc5 {[%emt 0:00:05]} ({Don't take} 26. Qxc4 Nd5 27. Rb1 Rbc8 $18) 26... Bc8 {[%emt 0:00:06]} 27. Be4 {[%emt 0:00:06]} ({Much less strong is} 27. Qxc4 Nef5 28. Bxf5 Nxf5 29. Nxe6 Ne3 $18) 27... Nef5 {[%emt 0:00:02]} 28. Qxc4 {[%emt 0:00:10]} Nxh4 {[%emt 0:00:05]} 29. Rf1 {[%emt 0:00:12] Prevents f3. Strongly threatening d5.} g5 $2 {[%emt 0:00:17]} (29... f3 30. d5 h6 31. dxe6 Kh7 32. gxf3 Nhf5) 30. d5 {[%emt 0:00:06] White is clearly winning.} Nhf5 {[%emt 0:00:03]} 31. Bxf5 {[%emt 0:00:06]} Nxf5 {[%emt 0:00:02]} 32. dxe6 {[%emt 0:00:06] Threatens to win with e7+.} Ne3 {[%emt 0:00:04] [#]} 33. Qa2 $1 {[%emt 0:00:02] And now e7+ would win.} Kh8 {[%emt 0:00:23]} (33... Re8 34. Nd7) 34. e7 {[%emt 0:00:03][%cal Re7f8]} Rg8 {[%emt 0:00:01] [#]} 35. Qxg8+ $3 {[%emt 0:00:03][%mdl 512]} Kxg8 {[%emt 0:00:01]} 36. e8=Q+ {[%emt 0:00:03] Weighted Error Value: White=0.12 (very precise) /Black=0.48} 1-0

[Event "German-ch Blitz Women 2022"]
[Site "Magdeburg"]
[Date "2022.08.13"]
[Round "8.2"]
[White "Muetsch, Annmarie"]
[Black "Nikolaeva, Mariya A"]
[Result "0-1"]
[ECO "C54"]
[WhiteElo "2249"]
[BlackElo "1309"]
[Annotator "TA"]
[PlyCount "61"]
[EventDate "2022.08.10"]
[EventType "tourn"]
[EventCountry "GER"]
[SourceTitle "playchess.com"]
[Source "ChessBase"]
[SourceQuality "1"]
[TimeControl "180+2"]

{[%evp 24,61,54,41,82,79,68,58,72,70,69,57,67,58,69,66,90,79,92,37,38,45,47,46,54,42,85,89,146,76,214,220,384,363,872,741,1151,1181,1359,1335]} 1. e4 {[%emt 0:00:01]} e5 {[%emt 0:00:00]} 2. Nf3 {[%emt 0:00:01]} Nc6 {[%emt 0:00:01]} 3. Bc4 {[%emt 0:00:02]} Bc5 {[%emt 0:00:01]} 4. c3 {[%emt 0:00:00]} Nf6 {[%emt 0:00:01]} 5. d4 {[%emt 0:00:02]} exd4 {[%emt 0:00:01]} 6. e5 {[%emt 0:00:01]} d5 {[%emt 0:00:09]} 7. Bb5 {[%emt 0:00:01]} Ne4 {[%emt 0:00:02]} 8. cxd4 {[%emt 0:00:02]} Bb4+ {[%emt 0:00:05]} 9. Bd2 {[%emt 0:00:04]} Bxd2+ {[%emt 0:00:03]} 10. Nbxd2 {[%emt 0:00:02]} Nxd2 {[%emt 0:00:02]} 11. Qxd2 {[%emt 0:00:03]} Bd7 {[%emt 0:00:03]} 12. O-O {[%emt 0:00:12]} O-O {[%emt 0:00:02]} 13. Bd3 {[%emt 0:00:14]} h6 {[%emt 0:00:03] C54: Giuoco Piano: 4 c3 Nf6, main lines with 5 d4 and 5 d3.} 14. h3 {[%emt 0:00:04]} Ne7 {[%emt 0:00:04] [#]} 15. Qf4 $146 {[%emt 0:00:06]} ({Predecessor:} 15. Rac1 Rc8 16. Qa5 a6 17. Rfe1 Bc6 18. Qb4 Qd7 19. Qb3 Nf5 20. Bb1 g6 21. Bxf5 Qxf5 {1-0 (67) Aarush,V-Bondar,D (1460) Chess.com INT 2020}) 15... f5 {[%emt 0:00:35] White is slightly better.} 16. Rfe1 {[%emt 0:00:27]} Be6 {[%emt 0:00:02]} 17. Rac1 {[%emt 0:00:09]} c6 {[%emt 0:00:01]} 18. b4 {[%emt 0:00:16]} a6 {[%emt 0:00:06]} 19. a4 {[%emt 0:00:04]} Qb6 {[%emt 0:00:17]} 20. Rb1 {[%emt 0:00:10]} Qc7 {[%emt 0:00:20]} 21. h4 {[%emt 0:00:03]} (21. Rec1 $16) 21... Ng6 $14 {[%emt 0:00:17]} 22. Qh2 {[%emt 0:00:16]} Qf7 {[%emt 0:00:09]} 23. h5 {[%emt 0:00:06]} Ne7 {[%emt 0:00:01]} 24. Nd2 {[%emt 0:00:12][%cal Bf3d2,Bd2b3,Bb3c5][%mdl 32]} (24. Qh4 {is interesting.} f4 25. Be2 Nf5 26. Qxf4 Qxh5 27. Nd2) 24... Rfb8 {[%emt 0:00:02]} 25. Nb3 {[%emt 0:00:03]} b6 {[%emt 0:00:13] Inhibits Nc5.} (25... f4 $142) 26. Qh4 {[%emt 0:00:11]} ({Better is} 26. f4) 26... Qe8 {[%emt 0:00:24] [#] This costs Black the game.} (26... f4 $16) 27. a5 $1 $18 {[%emt 0:00:01]} bxa5 $2 {[%emt 0:00:10]} (27... Bc8 28. e6 Kh8 29. axb6 Rxb6) 28. bxa5 {[%emt 0:00:01]} ({Much less strong is} 28. Nc5 Bc8 29. bxa5 Rxb1 30. Rxb1 Qf8 $18) 28... Qc8 $2 {[%emt 0:00:28]} (28... Bf7 29. Nc5 Rb5) 29. Nc5 {[%emt 0:00:03] White is clearly winning.} Rxb1 {[%emt 0:00:07]} 30. Rxb1 {[%emt 0:00:02]} Kf8 {[%emt 0:00:10]} 31. Rb7 {[%emt 0:00:15][%mdl 32768] Weighted Error Value: White=0.11 (very precise) /Black=0.39. Loss on time!?} 0-1

[Event "German-ch Blitz Women 2022"]
[Site "Magdeburg"]
[Date "2022.08.13"]
[Round "8.3"]
[White "Daemering, Katrin"]
[Black "Schulze, Lara"]
[Result "0-1"]
[ECO "B32"]
[WhiteElo "1965"]
[BlackElo "2292"]
[Annotator "TA"]
[PlyCount "88"]
[EventDate "2022.08.10"]
[EventType "tourn"]
[EventCountry "GER"]
[SourceTitle "playchess.com"]
[Source "ChessBase"]
[SourceQuality "1"]
[TimeControl "180+2"]

{[%evp 21,88,54,79,20,0,0,6,0,16,-25,-24,-31,-29,-50,-31,-39,-52,-54,-51,-43,-48,-86,-29,-43,0,0,0,0,0,-35,0,0,0,-94,0,-92,-18,-32,-11,-85,0,0,0,0,4,0,0,0,58,-194,-197,-202,-27,-24,0,0,0,0,0,0,-4,-12,-24,-17,48,-10,-10,-23,-16]} 1. e4 {[%emt 0:00:01]} c5 {[%emt 0:00:01]} 2. Nf3 {[%emt 0:00:01]} Nc6 {[%emt 0:00:00]} 3. d4 {[%emt 0:00:01]} cxd4 {[%emt 0:00:01]} 4. c3 {[%emt 0:00:01]} Nf6 {[%emt 0:00:15]} 5. e5 {[%emt 0:00:04]} Nd5 {[%emt 0:00:01]} 6. cxd4 {[%emt 0:00:01]} d6 {[%emt 0:00:03]} 7. exd6 {[%emt 0:00:03]} Qxd6 {[%emt 0:00:04]} 8. Nc3 {[%emt 0:00:04]} Nxc3 {[%emt 0:00:13]} 9. bxc3 {[%emt 0:00:01]} e6 {[%emt 0:00:18]} 10. Bd3 {[%emt 0:00:06]} Be7 {[%emt 0:00:02]} 11. O-O {[%emt 0:00:11]} O-O {[%emt 0:00:07]} 12. Be3 {[%emt 0:00:17] B22: Sicilian: 2 c3.} (12. Qc2 $16) 12... b6 $11 {[%emt 0:00:04] [#]} 13. Rc1 $146 {[%emt 0:00:06]} ({Predecessor:} 13. Qc2 f5 14. Rfe1 Bb7 15. Rad1 Rac8 16. Qe2 Rf6 17. d5 exd5 18. Bg5 Rf7 19. Bc4 {1-0 (46) Hausmann,I (2149)-Khurtsidze,N (2391) Germany 2004}) 13... Bb7 {[%emt 0:00:01]} 14. Bb1 {[%emt 0:00:02] The position is equal.} Bf6 {[%emt 0:00:17]} 15. Qc2 {[%emt 0:00:08][%csl Gb1][%cal Rc2h7]} (15. Re1 {looks sharper.} Ne7 16. Ng5 Nf5 17. Qg4) 15... g6 {[%emt 0:00:01] Active counter play!} 16. Rfd1 {[%emt 0:00:01]} Rac8 {[%emt 0:00:03]} 17. Qd3 {[%emt 0:00:15]} Rfd8 {[%emt 0:00:04]} 18. Nd2 {[%emt 0:00:03]} Na5 {[%emt 0:00:14]} 19. Ne4 {[%emt 0:00:15]} Bxe4 {[%emt 0:00:02]} 20. Qxe4 {[%emt 0:00:01]} Nc4 {[%emt 0:00:02]} 21. Bf4 {[%emt 0:00:05]} Qd5 {[%emt 0:00:06]} (21... e5 $17 22. Bh6 b5) 22. Qe2 {[%emt 0:00:11]} Bg7 {[%emt 0:00:23]} 23. Be4 {[%emt 0:00:02]} Qd7 {[%emt 0:00:11]} 24. Bd3 {[%emt 0:00:02] A strong pair of Bishops.} Qa4 {[%emt 0:00:12]} 25. Bg5 {[%emt 0:00:08]} Rd7 {[%emt 0:00:04]} 26. Bf4 {[%emt 0:00:29]} Nd6 {[%emt 0:00:25]} 27. Qg4 {[%emt 0:00:24] [#]} (27. h4 $11 {remains equal.}) 27... Qa5 {[%emt 0:00:09]} (27... Nb5 $1 $17 {[%cal Rb5c3]} 28. Bxb5 Qxb5) 28. Rc2 {[%emt 0:00:16]} (28. d5 $11 h5 29. Qh3) 28... Nf5 {[%emt 0:00:10]} ({Much less strong is} 28... Rxc3 29. Bd2 Rdc7 30. Rxc3 (30. Bxc3 Rxc3 31. Rxc3 Qxc3 $14) 30... Rxc3 31. Be2 $16 (31. Bxc3 Qxc3 32. Qf3 Qa3 $16)) (28... Nb5 $17 29. Bxb5 Qxb5) 29. Rdc1 {[%emt 0:00:02]} Rcd8 {[%emt 0:00:09][%cal Of5d4]} 30. Bg5 {[%emt 0:00:06] [#]} (30. Qf3 $11 {keeps the balance.}) 30... Rc8 {[%emt 0:00:02]} (30... h5 $1 $17 {[%cal Rh5g4]} 31. Qf4 f6 32. Bxf5 exf5) 31. h4 {[%emt 0:00:07][%cal Bh2h4,Bh4h5][%mdl 32]} h6 {[%emt 0:00:02]} 32. Bf4 {[%emt 0:00:02][%cal Bg5f4,Bf4d2,Bd2e3][%mdl 32]} Rcd8 {[%emt 0:00:11]} 33. h5 {[%emt 0:00:05]} g5 {[%emt 0:00:02]} 34. Bd2 {[%emt 0:00:05]} Kh8 {[%emt 0:00:05]} (34... Qd5 $11) 35. c4 $2 {[%emt 0:00:09][%mdl 8192]} (35. f4 $14 {stays ahead.}) 35... Qa3 $19 {[%emt 0:00:01]} ({Not} 35... Rxd4 36. Qxd4 Nxd4 37. Bxa5 Nxc2 38. Bxc2 $17) 36. Bxf5 {[%emt 0:00:05] Strongly threatening Be4.} exf5 {[%emt 0:00:01]} ({Black should try} 36... Rxd4 $19 37. Qd1 exf5) 37. Qxf5 $11 {[%emt 0:00:01]} Rxd4 {[%emt 0:00:01]} 38. Be3 $36 {[%emt 0:00:07][%mdl 2048] White has good play.} Rd1+ {[%emt 0:00:02]} 39. Rxd1 {[%emt 0:00:04]} Rxd1+ {[%emt 0:00:01]} 40. Kh2 {[%emt 0:00:01]} Qd6+ {[%emt 0:00:02]} 41. g3 {[%emt 0:00:01]} Qc6 {[%emt 0:00:03][%csl Gd1][%cal Rc6h1]} 42. f3 {[%emt 0:00:08]} Rd7 {[%emt 0:00:06]} (42... Kg8 $11) 43. Qe4 ({White should play} 43. c5 $14 Rc7 44. Rd2) 43... Qxe4 44. fxe4 Re7 {[%mdl 32768] Weighted Error Value: White=0.41/Black=0.28 (precise) . Loss on time!?} 0-1

[Event "German-ch Blitz Women 2022"]
[Site "Magdeburg"]
[Date "2022.08.13"]
[Round "8.4"]
[White "Khrapko, Marharyta"]
[Black "Melamed, Tatjana"]
[Result "0-1"]
[ECO "A01"]
[WhiteElo "2128"]
[BlackElo "2380"]
[Annotator "TA"]
[PlyCount "52"]
[EventDate "2022.08.10"]
[EventType "tourn"]
[EventCountry "GER"]
[SourceTitle "playchess.com"]
[Source "ChessBase"]
[SourceQuality "1"]
[TimeControl "180+2"]

{[%evp 11,52,0,0,0,0,-3,9,-8,24,17,26,4,0,-110,18,-371,-365,-414,-391,-402,-379,-451,-168,-431,-431,-419,-403,-637,-385,-29987,-29988,-29988,-29989,-29990,-29991,-29996,-29997,-29997,-29998,-29998,-29998,-29998,-29999]} 1. b3 {[%emt 0:00:01]} e5 {[%emt 0:00:02]} 2. Bb2 {[%emt 0:00:01]} Nc6 {[%emt 0:00:01]} 3. c4 {[%emt 0:00:01]} Nf6 {[%emt 0:00:02]} 4. e3 {[%emt 0:00:01]} d5 {[%emt 0:00:01]} 5. cxd5 {[%emt 0:00:01]} Nxd5 {[%emt 0:00:01]} 6. a3 {[%emt 0:00:01]} Bd6 {[%emt 0:00:01]} 7. d3 {[%emt 0:00:02] A01: Nimzowitsch-Larsen Opening.} O-O {[%emt 0:00:03]} 8. Nf3 {[%emt 0:00:26] 8.Nd2 is the modern continuation.} f5 {[%emt 0:00:03]} 9. Be2 {[%emt 0:00:13] [#] The position is equal.} Qe8 $146 {[%emt 0:00:05]} ({Predecessor:} 9... Kh8 10. Nbd2 Qe7 11. Qc2 Bd7 12. b4 b5 13. g3 Nb6 14. Rc1 Na4 15. Ba1 a5 16. bxa5 Bxa3 {½-½ (23) Hickl,J (2600)-Mueller,K (2506) Austria 2002}) 10. Nbd2 {[%emt 0:00:53]} Qg6 {[%emt 0:00:10]} 11. h4 {[%emt 0:00:14]} e4 {[%emt 0:00:32] Strongly threatening ...Nxe3.} (11... Qxg2 $2 12. Rg1 Qh3 13. Bf1 $18) 12. dxe4 {[%emt 0:00:11] [#]} (12. Ng5 $11 {remains equal.}) 12... fxe4 {[%emt 0:00:01] Black is more active.} (12... Nxe3 $1 $17 {[%mdl 512]} 13. Qc1 (13. fxe3 Qxg2 14. Nf1 Qxh1 $17) 13... fxe4 14. fxe3 exf3 15. Nxf3 Qg3+ 16. Kd2 Be6) 13. Ng5 $2 {[%emt 0:00:02][%mdl 8192] [#] Now White is beyond hope.} (13. h5 $11 {and White has nothing to worry.} Qe6 14. Nxe4 (14. Ng5 Nxe3 15. Qb1 Nxg2+ 16. Kd1 Qh6 $11) 14... Qxe4 15. Bd3 Nxe3 16. Bxe4 Nxd1 17. Bd5+ Kh8 18. Rxd1) 13... Nxe3 $1 $19 {[%emt 0:00:12][%mdl 512]} 14. Bc4+ {[%emt 0:00:27]} (14. Qc1 Nxg2+) 14... Kh8 {[%emt 0:00:23]} 15. Qe2 {[%emt 0:00:39]} Nxg2+ {[%emt 0:00:14]} 16. Kf1 {[%emt 0:00:12]} e3 $2 {[%emt 0:00:03]} (16... Nf4 17. Qe3 h6) 17. Kxg2 $2 {[%emt 0:00:06]} (17. Nde4 Nf4 18. Qxe3) 17... Rxf2+ {[%emt 0:00:02]} ({Not} 17... exd2 $2 18. Rhg1 Na5 19. Kh1 Nxc4 20. Ne4 Nxb2 21. Rxg6 hxg6 22. Nxd6 d1=Q+ 23. Rxd1 Nxd1 24. Nf7+ Kg8 25. Ng5 Nxf2+ 26. Kg2 $19) 18. Qxf2 {[%emt 0:00:01]} exf2 {[%emt 0:00:28] Dancing on a razor blade.} 19. Kxf2 {[%emt 0:00:04]} (19. Raf1 $142 Na5 20. Bd5) 19... Bc5+ {[%emt 0:00:14]} 20. Ke2 $2 {[%emt 0:00:02]} (20. Ke1 $19 Qe8+ 21. Nde4) 20... Bg4+ {[%emt 0:00:01] Black mates.} 21. Ke1 {[%emt 0:00:02]} Re8+ {[%emt 0:00:02]} 22. Nde4 {[%emt 0:00:01]} Rxe4+ {[%emt 0:00:02]} 23. Nxe4 {[%emt 0:00:02]} Qxe4+ 24. Kd2 Be3+ {[%emt 0:00:03]} 25. Kc3 {[%emt 0:00:02]} Qd4+ {[%emt 0:00:03]} 26. Kc2 {[%emt 0:00:02]} Bf5+ {[%emt 0:00:01] Weighted Error Value: White=1.03/Black=0.40} 0-1